[Event "ONJK DE"]
[Site "Enschede, Netherlands"]
[Date "2022.08.09"]
[Round "2.8"]
[White "Leenen, Boyd (E)"]
[Black "Los, Evan (E)"]
[Result "1-0"]
[TimeControl "40min + 30sec/move"]
[WhiteElo "1417"]
[BlackElo "1050"]

1. e4 {[%clk 00:40:58]} {[%emt 00:00:01]} e5 {[%clk 00:41:00]} {[%emt
00:00:01]} 2. Nf3 {[%clk 00:41:21]} {[%emt 00:00:07]} Nc6 {[%clk 00:41:24]}
{[%emt 00:00:06]} 3. Bc4 {[%clk 00:41:47]} {[%emt 00:00:03]} Nf6 {[%clk
00:41:48]} {[%emt 00:00:07]} 4. d3 {[%clk 00:42:11]} {[%emt 00:00:05]} Qe7
{[%clk 00:42:09]} {[%emt 00:00:09]} 5. Nc3 {[%clk 00:42:35]} {[%emt 00:00:06]}
Na5 {[%clk 00:42:33]} {[%emt 00:00:07]} 6. Bb3 {[%clk 00:42:58]} {[%emt
00:00:06]} c6 {[%clk 00:42:56]} {[%emt 00:00:07]} 7. Bg5 {[%clk 00:43:22]}
{[%emt 00:00:06]} g6 {[%clk 00:42:38]} {[%emt 00:00:49]} 8. d4 {[%clk
00:43:46]} {[%emt 00:00:05]} d6 {[%clk 00:42:43]} {[%emt 00:00:25]} 9. h3
{[%clk 00:44:01]} {[%emt 00:00:15]} Bg7 {[%clk 00:43:03]} {[%emt 00:00:10]} 10.
O-O {[%clk 00:44:23]} {[%emt 00:00:08]} O-O {[%clk 00:43:20]} {[%emt 00:00:05]}
11. Re1 {[%clk 00:44:41]} {[%emt 00:00:20]} Qc7 {[%clk 00:43:35]} {[%emt
00:00:14]} 12. Qd2 {[%clk 00:44:26]} {[%emt 00:00:45]} Bd7 {[%clk 00:41:30]}
{[%emt 00:02:35]} 13. Rad1 {[%clk 00:44:32]} {[%emt 00:00:23]} Rfe8 {[%clk
00:41:24]} {[%emt 00:00:38]} 14. dxe5 {[%clk 00:44:46]} {[%emt 00:00:16]} Nh5
{[%clk 00:37:25]} {[%emt 00:04:28]} 15. exd6 {[%clk 00:44:42]} {[%emt
00:00:34]} Qc8 {[%clk 00:37:22]} {[%emt 00:00:33]} 16. Kh2 {[%clk 00:44:05]}
{[%emt 00:01:07]} Be5+ {[%clk 00:35:41]} {[%emt 00:02:12]} 17. Nxe5 {[%clk
00:43:21]} {[%emt 00:01:14]} Rxe5 {[%clk 00:35:55]} {[%emt 00:00:15]} 18. f4
{[%clk 00:43:24]} {[%emt 00:00:28]} Re8 {[%clk 00:35:54]} {[%emt 00:00:31]} 19.
g4 {[%clk 00:42:33]} {[%emt 00:01:20]} Ng7 {[%clk 00:35:47]} {[%emt 00:00:38]}
20. Nd5 {[%clk 00:41:11]} {[%emt 00:01:51]} cxd5 {[%clk 00:35:30]} {[%emt
00:00:47]} 21. Qxa5 {[%clk 00:41:28]} {[%emt 00:00:14]} dxe4 {[%clk 00:35:47]}
{[%emt 00:00:12]} 22. Qd5 {[%clk 00:40:51]} {[%emt 00:01:08]} Ne6 {[%clk
00:34:23]} {[%emt 00:01:53]} 23. Rxe4 {[%clk 00:39:23]} {[%emt 00:01:58]} Nxg5
{[%clk 00:33:07]} {[%emt 00:01:46]} 24. fxg5 {[%clk 00:39:37]} {[%emt
00:00:16]} Re6 {[%clk 00:30:09]} {[%emt 00:03:28]} 25. Rxe6 {[%clk 00:38:54]}
{[%emt 00:01:14]} Bxe6 {[%clk 00:30:02]} {[%emt 00:00:37]} 26. d7 {[%clk
00:38:52]} {[%emt 00:00:32]} Qc7+ {[%clk 00:26:10]} {[%emt 00:04:21]} 27. Qd6
{[%clk 00:39:03]} {[%emt 00:00:20]} Qxd6+ {[%clk 00:25:29]} {[%emt 00:01:10]}
28. Rxd6 {[%emt 00:00:23]} Rd8 {[%emt 00:00:03]} 29. Bxe6 {[%clk 00:38:05]}
{[%emt 00:01:03]} fxe6 {[%clk 00:25:53]} {[%emt 00:00:06]} 30. Kg3 {[%clk
00:37:56]} {[%emt 00:00:39]} Kf8 {[%clk 00:26:09]} {[%emt 00:00:14]} 31. Kf4
{[%clk 00:38:20]} {[%emt 00:00:06]} Ke7 {[%clk 00:26:32]} {[%emt 00:00:07]} 32.
Ke5 {[%clk 00:38:48]} {[%emt 00:00:02]} Rxd7 {[%clk 00:26:53]} {[%emt
00:00:08]} 33. Rxe6+ {[%clk 00:38:43]} {[%emt 00:00:35]} Kf7 {[%clk 00:27:09]}
{[%emt 00:00:14]} 34. Rd6 {[%clk 00:38:41]} {[%emt 00:00:33]} Re7+ {[%clk
00:27:11]} {[%emt 00:00:28]} 35. Kd4 {[%clk 00:39:01]} {[%emt 00:00:10]} Rc7
{[%clk 00:26:35]} {[%emt 00:01:05]} 36. c3 {[%clk 00:38:54]} {[%emt 00:00:37]}
Ke7 {[%clk 00:26:46]} {[%emt 00:00:19]} 37. Rf6 {[%clk 00:38:01]} {[%emt
00:01:22]} Rd7+ {[%clk 00:25:38]} {[%emt 00:01:39]} 38. Ke3 {[%clk 00:38:02]}
{[%emt 00:00:29]} Rc7 {[%clk 00:25:41]} {[%emt 00:00:28]} 39. Rf2 {[%clk
00:38:04]} {[%emt 00:00:26]} Rd7 {[%clk 00:24:14]} {[%emt 00:01:58]} 40. Ke4
{[%clk 00:37:32]} {[%emt 00:01:03]} Rc7 {[%clk 00:24:11]} {[%emt 00:00:34]} 41.
h4 {[%clk 00:36:57]} {[%emt 00:01:04]} Rc6 {[%clk 00:23:54]} {[%emt 00:00:47]}
42. Re2 {[%clk 00:36:03]} {[%emt 00:01:24]} Rd6 {[%clk 00:22:50]} {[%emt
00:01:34]} 43. h5 {[%clk 00:35:54]} {[%emt 00:00:39]} Kf7 {[%clk 00:21:43]}
{[%emt 00:01:36]} 44. Rf2+ {[%clk 00:35:01]} {[%emt 00:01:22]} Ke7 {[%clk
00:20:41]} {[%emt 00:01:33]} 45. Re2 {[%clk 00:33:53]} {[%emt 00:01:38]} Kf7
{[%clk 00:20:22]} {[%emt 00:00:49]} 46. a3 {[%clk 00:33:14]} {[%emt 00:01:09]}
a6 {[%clk 00:20:45]} {[%emt 00:00:08]} 47. c4 {[%clk 00:33:27]} {[%emt
00:00:16]} b6 {[%clk 00:20:43]} {[%emt 00:00:32]} 48. b4 {[%emt 00:00:21]} Re6+
{[%emt 00:00:08]} 49. Kd3 {[%clk 00:33:18]} {[%emt 00:00:11]} Rd6+ {[%clk
00:20:49]} {[%emt 00:00:23]} 50. Kc3 {[%clk 00:33:36]} {[%emt 00:00:12]} Rc6
{[%clk 00:19:50]} {[%emt 00:01:29]} 51. Re5 {[%clk 00:33:55]} {[%emt 00:00:11]}
b5 {[%clk 00:19:51]} {[%emt 00:00:30]} 52. c5 {[%clk 00:34:22]} {[%emt
00:00:02]} Rc7 {[%clk 00:19:48]} {[%emt 00:00:32]} 53. Kd4 {[%clk 00:34:38]}
{[%emt 00:00:14]} Rd7+ {[%clk 00:19:52]} {[%emt 00:00:27]} 54. Ke4 {[%clk
00:34:59]} {[%emt 00:00:09]} Kg7 {[%clk 00:20:10]} {[%emt 00:00:11]} 55. c6
{[%clk 00:35:24]} {[%emt 00:00:06]} Rc7 {[%clk 00:19:35]} {[%emt 00:01:05]} 56.
Kd5 {[%clk 00:35:25]} {[%emt 00:00:28]} 1-0

[Event "ONJK DE"]
[Site "Enschede, Netherlands"]
[Date "2022.08.09"]
[Round "3.1"]
[White "Groenewoud, Joel"]
[Black "Frederiks, Jesse"]
[Result "1-0"]
[TimeControl "40min + 30sec/move"]
[WhiteElo "1497"]
[BlackElo "1302"]

1. e4 {[%clk 00:40:59]} e6 {[%clk 00:40:59]} {[%emt 00:00:02]} 2. c4 {[%clk
00:41:23]} {[%emt 00:00:06]} c5 {[%clk 00:40:08]} {[%emt 00:01:20]} 3. Nc3
{[%clk 00:41:42]} {[%emt 00:00:11]} Nc6 {[%clk 00:40:24]} {[%emt 00:00:14]} 4.
Nf3 {[%clk 00:42:06]} {[%emt 00:00:07]} d6 {[%clk 00:40:35]} {[%emt 00:00:19]}
5. d4 {[%clk 00:42:27]} {[%emt 00:00:08]} cxd4 {[%clk 00:40:13]} {[%emt
00:00:52]} 6. Nxd4 {[%clk 00:42:51]} {[%emt 00:00:07]} Nf6 {[%clk 00:40:09]}
{[%emt 00:00:33]} 7. Be2 {[%clk 00:42:54]} {[%emt 00:00:27]} Be7 {[%clk
00:39:33]} {[%emt 00:01:06]} 8. O-O {[%clk 00:43:11]} {[%emt 00:00:14]} Qc7
{[%clk 00:39:01]} {[%emt 00:01:01]} 9. Be3 {[%clk 00:43:07]} {[%emt 00:00:34]}
O-O {[%clk 00:38:29]} {[%emt 00:01:02]} 10. Qd2 {[%clk 00:43:32]} {[%emt
00:00:05]} Bd7 {[%clk 00:34:47]} {[%emt 00:04:12]} 11. Rad1 {[%clk 00:43:35]}
{[%emt 00:00:27]} Rac8 {[%clk 00:34:31]} {[%emt 00:00:46]} 12. Ndb5 {[%clk
00:42:46]} {[%emt 00:01:20]} Qb8 {[%clk 00:33:48]} {[%emt 00:01:13]} 13. Nxd6
{[%clk 00:42:12]} {[%emt 00:01:04]} Bxd6 {[%clk 00:33:53]} {[%emt 00:00:24]} 14.
Qxd6 {[%clk 00:42:31]} {[%emt 00:00:11]} Rfd8 {[%clk 00:32:06]} {[%emt
00:02:16]} 15. Qxb8 {[%clk 00:42:07]} {[%emt 00:00:55]} Rxb8 {[%clk 00:31:39]}
{[%emt 00:00:57]} 16. Rd2 {[%clk 00:41:55]} {[%emt 00:00:42]} Be8 {[%clk
00:31:06]} {[%emt 00:01:04]} 17. Rfd1 {[%clk 00:42:08]} {[%emt 00:00:16]} Rxd2
{[%clk 00:31:15]} {[%emt 00:00:21]} 18. Rxd2 {[%clk 00:42:28]} {[%emt
00:00:10]} Bd7 {[%clk 00:29:49]} {[%emt 00:01:56]} 19. Bf4 {[%clk 00:41:32]}
{[%emt 00:01:27]} Rc8 {[%clk 00:28:59]} {[%emt 00:01:19]} 20. e5 {[%clk
00:41:36]} {[%emt 00:00:27]} Rd8 {[%clk 00:27:51]} {[%emt 00:01:37]} 21. exf6
{[%clk 00:41:48]} {[%emt 00:00:18]} gxf6 {[%clk 00:27:19]} {[%emt 00:01:02]} 22.
Bc7 {[%clk 00:41:47]} {[%emt 00:00:32]} Rc8 {[%clk 00:26:36]} {[%emt 00:01:13]}
23. Rxd7 {[%clk 00:42:09]} {[%emt 00:00:08]} Kg7 {[%clk 00:23:08]} {[%emt
00:03:57]} 24. Bf3 {[%clk 00:41:51]} {[%emt 00:00:49]} Ne5 {[%clk 00:22:08]}
{[%emt 00:01:29]} 25. Bxe5 {[%clk 00:42:06]} {[%emt 00:00:15]} fxe5 {[%clk
00:22:32]} {[%emt 00:00:06]} 26. b3 {[%clk 00:42:26]} {[%emt 00:00:11]} a5
{[%clk 00:22:32]} {[%emt 00:00:29]} 27. Bxb7 {[%clk 00:42:29]} {[%emt
00:00:27]} Rc5 {[%clk 00:22:32]} {[%emt 00:00:29]} 28. Na4 {[%clk 00:42:41]}
{[%emt 00:00:19]} 1-0

[Event "ONJK DE"]
[Site "Enschede, Netherlands"]
[Date "2022.08.09"]
[Round "3.2"]
[White "Declerck, Adriaan"]
[Black "Meert, Maarin"]
[Result "1-0"]
[TimeControl "40min + 30sec/move"]
[WhiteElo "1371"]
[BlackElo "1299"]

1. f4 {[%clk 00:40:31]} {[%emt 00:00:28]} d5 {[%clk 00:40:53]} {[%emt
00:00:08]} 2. Nf3 {[%clk 00:40:54]} {[%emt 00:00:06]} c5 {[%clk 00:41:04]}
{[%emt 00:00:19]} 3. e3 {[%clk 00:41:14]} {[%emt 00:00:09]} Nc6 {[%clk
00:41:20]} {[%emt 00:00:15]} 4. Bb5 {[%clk 00:41:31]} {[%emt 00:00:13]} Nf6
{[%clk 00:41:16]} {[%emt 00:00:34]} 5. d3 {[%clk 00:41:48]} {[%emt 00:00:13]}
e6 {[%clk 00:39:43]} {[%emt 00:02:04]} 6. Nbd2 {[%clk 00:41:33]} {[%emt
00:00:43]} Bd7 {[%clk 00:39:44]} {[%emt 00:00:30]} 7. b3 {[%clk 00:41:43]}
{[%emt 00:00:20]} Qb6 {[%clk 00:38:45]} {[%emt 00:01:30]} 8. Bxc6 {[%clk
00:41:30]} {[%emt 00:00:42]} Bxc6 {[%clk 00:38:57]} {[%emt 00:00:19]} 9. Bb2
{[%clk 00:41:39]} {[%emt 00:00:19]} Be7 {[%clk 00:39:11]} {[%emt 00:00:17]} 10.
h3 {[%clk 00:41:40]} {[%emt 00:00:30]} O-O-O {[%clk 00:36:46]} {[%emt
00:02:55]} 11. Ne5 {[%clk 00:41:49]} {[%emt 00:00:22]} Rhf8 {[%clk 00:36:11]}
{[%emt 00:01:05]} 12. g4 {[%clk 00:40:31]} {[%emt 00:01:46]} g6 {[%clk
00:34:35]} {[%emt 00:02:07]} 13. Nxc6 {[%clk 00:40:05]} {[%emt 00:00:55]} Qxc6
{[%clk 00:34:51]} {[%emt 00:00:15]} 14. Nf3 {[%clk 00:40:08]} {[%emt 00:00:27]}
Nd7 {[%clk 00:34:43]} {[%emt 00:00:38]} 15. g5 {[%clk 00:37:40]} {[%emt
00:02:58]} f6 {[%clk 00:34:11]} {[%emt 00:01:02]} 16. h4 {[%clk 00:37:40]}
{[%emt 00:00:30]} Rde8 {[%clk 00:31:57]} {[%emt 00:02:45]} 17. Qd2 {[%clk
00:36:37]} {[%emt 00:01:33]} e5 {[%clk 00:31:42]} {[%emt 00:00:45]} 18. O-O-O
{[%clk 00:31:58]} {[%emt 00:05:09]} e4 {[%clk 00:29:44]} {[%emt 00:02:28]} 19.
dxe4 {[%clk 00:31:09]} {[%emt 00:01:19]} dxe4 {[%clk 00:30:05]} {[%emt
00:00:09]} 20. Ng1 {[%clk 00:31:03]} {[%emt 00:00:36]} f5 {[%clk 00:29:51]}
{[%emt 00:00:45]} 21. h5 {[%clk 00:30:03]} {[%emt 00:01:29]} Rd8 {[%clk
00:29:41]} {[%emt 00:00:40]} 22. Qf2 {[%clk 00:25:32]} {[%emt 00:05:02]} Nb6
{[%clk 00:29:42]} {[%emt 00:00:29]} 23. Ne2 {[%clk 00:25:33]} {[%emt 00:00:29]}
c4 {[%clk 00:29:33]} {[%emt 00:00:39]} 24. Kb1 {[%clk 00:25:37]} {[%emt
00:00:25]} Nd5 {[%clk 00:27:14]} {[%emt 00:02:50]} 25. Nd4 {[%clk 00:24:31]}
{[%emt 00:01:36]} Qb6 {[%clk 00:26:42]} {[%emt 00:01:01]} 26. Qe2 {[%clk
00:22:50]} {[%emt 00:02:11]} c3 {[%clk 00:25:11]} {[%emt 00:02:01]} 27. Bc1
{[%clk 00:17:55]} {[%emt 00:05:25]} a6 {[%clk 00:23:55]} {[%emt 00:01:47]} 28.
Qc4+ {[%clk 00:17:34]} {[%emt 00:00:50]} Kb8 {[%clk 00:23:44]} {[%emt
00:00:41]} 29. hxg6 {[%clk 00:17:47]} {[%emt 00:00:17]} hxg6 {[%clk 00:24:06]}
{[%emt 00:00:08]} 30. Ne2 {[%clk 00:17:01]} {[%emt 00:01:17]} Qc5 {[%clk
00:23:21]} {[%emt 00:01:14]} 31. Rh7 {[%clk 00:11:08]} {[%emt 00:06:23]} Rfe8
{[%clk 00:22:40]} {[%emt 00:01:12]} 32. Rg7 {[%clk 00:09:13]} {[%emt 00:02:25]}
Nxe3 {[%clk 00:18:29]} {[%emt 00:04:40]} 33. Rxd8+ {[%clk 00:08:35]} {[%emt
00:01:08]} Rxd8 {[%clk 00:18:39]} {[%emt 00:00:20]} 34. Qxc3 {[%clk 00:08:33]}
{[%emt 00:00:32]} Qxc3 {[%clk 00:17:24]} {[%emt 00:01:45]} 35. Nxc3 {[%clk
00:08:57]} {[%emt 00:00:07]} Rc8 {[%clk 00:17:05]} {[%emt 00:00:49]} 36. Na4
{[%clk 00:08:56]} {[%emt 00:00:30]} Bf8 {[%clk 00:17:01]} {[%emt 00:00:34]} 37.
Rxg6 {[%clk 00:08:33]} {[%emt 00:00:54]} Nxc2 {[%clk 00:17:04]} {[%emt
00:00:27]} 38. Nb6 {[%clk 00:08:47]} {[%emt 00:00:16]} Rc7 {[%clk 00:14:16]}
{[%emt 00:03:18]} 39. Rg8 {[%clk 00:08:43]} {[%emt 00:00:33]} Ka7 {[%clk
00:14:04]} {[%emt 00:00:43]} 40. Rxf8 {[%clk 00:04:46]} {[%emt 00:04:27]} Kxb6
{[%clk 00:13:51]} {[%emt 00:00:43]} 41. Rxf5 {[%clk 00:05:02]} {[%emt
00:00:14]} Nd4 {[%clk 00:12:17]} {[%emt 00:02:03]} 42. Be3 {[%clk 00:04:36]}
{[%emt 00:00:56]} Rd7 {[%clk 00:12:26]} {[%emt 00:00:21]} 43. Re5 {[%clk
00:04:50]} {[%emt 00:00:15]} Kc6 {[%clk 00:12:14]} {[%emt 00:00:43]} 44. Rxe4
{[%clk 00:04:56]} {[%emt 00:00:25]} Nf5 {[%clk 00:11:50]} {[%emt 00:00:54]} 45.
Rc4+ {[%clk 00:04:30]} {[%emt 00:00:56]} Kd5 {[%clk 00:11:10]} {[%emt
00:01:09]} 46. Rc5+ {[%clk 00:04:55]} {[%emt 00:00:05]} Ke4 {[%clk 00:10:39]}
{[%emt 00:01:02]} 47. Bc1 {[%clk 00:04:47]} {[%emt 00:00:37]} Ng3 {[%clk
00:08:38]} {[%emt 00:02:32]} 48. Re5+ {[%clk 00:05:02]} {[%emt 00:00:15]} Kf3
{[%clk 00:08:51]} {[%emt 00:00:16]} 49. g6 {[%clk 00:03:30]} {[%emt 00:02:01]}
Rg7 {[%clk 00:07:20]} {[%emt 00:02:02]} 50. Rg5 {[%clk 00:03:08]} {[%emt
00:00:48]} Ne2 {[%clk 00:06:45]} {[%emt 00:01:09]} 51. f5 {[%clk 00:02:27]}
{[%emt 00:01:11]} Nf4 {[%clk 00:04:42]} {[%emt 00:02:33]} 52. Bxf4 {[%clk
00:01:50]} {[%emt 00:01:07]} Kxf4 {[%clk 00:05:04]} {[%emt 00:00:07]} 53. Rh5
{[%clk 00:01:35]} {[%emt 00:00:44]} Ke5 {[%clk 00:05:09]} {[%emt 00:00:27]} 54.
Rh7 {[%clk 00:00:56]} {[%emt 00:01:08]} Kf6 {[%clk 00:05:33]} {[%emt 00:00:07]}
55. Rxg7 {[%clk 00:00:33]} {[%emt 00:00:53]} Kxg7 {[%clk 00:05:56]} {[%emt
00:00:07]} 56. Kc2 {[%clk 00:00:42]} {[%emt 00:00:21]} b6 {[%clk 00:06:03]}
{[%emt 00:00:23]} 57. Kc3 {[%clk 00:00:44]} {[%emt 00:00:28]} Kf6 {[%clk
00:06:27]} {[%emt 00:00:06]} 58. Kd4 {[%clk 00:00:58]} {[%emt 00:00:16]} b5
{[%clk 00:06:45]} {[%emt 00:00:13]} 59. Kc5 {[%clk 00:00:55]} {[%emt 00:00:31]}
Kg7 {[%clk 00:06:57]} {[%emt 00:00:20]} 60. Kb6 {[%clk 00:01:03]} {[%emt
00:00:21]} 1-0

[Event "ONJK DE"]
[Site "Enschede, Netherlands"]
[Date "2022.08.09"]
[Round "3.3"]
[White "Breider, Jayden"]
[Black "Vogels, Mathijs"]
[Result "0-1"]
[TimeControl "40min + 30sec/move"]
[WhiteElo "1350"]
[BlackElo "1283"]

1. e4 {[%clk 00:41:22]} {[%emt 00:00:08]} e5 {[%clk 00:41:24]} {[%emt
00:00:05]} 2. Nf3 {[%clk 00:41:48]} {[%emt 00:00:04]} Nc6 {[%clk 00:41:53]}
{[%emt 00:00:02]} 3. Bc4 {[%clk 00:42:10]} {[%emt 00:00:08]} Bc5 {[%clk
00:42:11]} {[%emt 00:00:12]} 4. c3 {[%clk 00:42:34]} {[%emt 00:00:06]} Nf6
{[%clk 00:42:35]} {[%emt 00:00:06]} 5. d4 {[%clk 00:42:59]} {[%emt 00:00:06]}
exd4 {[%clk 00:43:00]} {[%emt 00:00:05]} 6. cxd4 {[%clk 00:43:23]} {[%emt
00:00:05]} Bb4+ {[%clk 00:43:25]} {[%emt 00:00:05]} 7. Bd2 {[%clk 00:43:39]}
{[%emt 00:00:14]} Bxd2+ {[%clk 00:43:49]} {[%emt 00:00:06]} 8. Nbxd2 {[%clk
00:44:02]} {[%emt 00:00:07]} d5 {[%clk 00:44:09]} {[%emt 00:00:11]} 9. exd5
{[%clk 00:43:46]} {[%emt 00:00:46]} Nxd5 {[%clk 00:44:32]} {[%emt 00:00:06]} 10.
O-O {[%clk 00:44:02]} {[%emt 00:00:14]} O-O {[%clk 00:44:55]} {[%emt 00:00:06]}
11. h3 {[%clk 00:43:59]} {[%emt 00:00:34]} Nb6 {[%clk 00:44:48]} {[%emt
00:00:37]} 12. Bd3 {[%clk 00:43:25]} {[%emt 00:01:04]} Nxd4 {[%clk 00:44:52]}
{[%emt 00:00:26]} 13. Nxd4 {[%clk 00:43:49]} {[%emt 00:00:06]} Qxd4 {[%clk
00:45:13]} {[%emt 00:00:09]} 14. Qc2 {[%clk 00:43:48]} {[%emt 00:00:31]} h6
{[%clk 00:44:18]} {[%emt 00:01:25]} 15. Nf3 {[%clk 00:44:03]} {[%emt 00:00:15]}
Qd8 {[%clk 00:43:46]} {[%emt 00:01:01]} 16. Rfd1 {[%clk 00:43:44]} {[%emt
00:00:50]} Qe7 {[%clk 00:42:38]} {[%emt 00:01:37]} 17. Rac1 {[%clk 00:42:39]}
{[%emt 00:01:36]} c6 {[%clk 00:42:37]} {[%emt 00:00:31]} 18. Rd2 {[%clk
00:40:59]} {[%emt 00:02:10]} Nd5 {[%clk 00:42:17]} {[%emt 00:00:49]} 19. Re1
{[%clk 00:41:02]} {[%emt 00:00:26]} Qf6 {[%emt 00:09:06]} 20. Qc4 {[%clk
00:32:47]} Nf4 {[%clk 00:40:58]} {[%emt 00:01:59]} 21. Qc3 {[%clk 00:31:53]}
{[%emt 00:01:24]} Qxc3 {[%clk 00:41:07]} {[%emt 00:00:20]} 22. bxc3 {[%clk
00:32:18]} {[%emt 00:00:06]} Nxd3 {[%clk 00:41:29]} {[%emt 00:00:08]} 23. Rxd3
{[%clk 00:32:40]} {[%emt 00:00:08]} Bf5 {[%clk 00:41:31]} {[%emt 00:00:28]} 24.
Rd4 {[%clk 00:32:34]} {[%emt 00:00:34]} Rfe8 {[%clk 00:41:02]} {[%emt
00:01:01]} 25. Kf1 {[%clk 00:32:26]} {[%emt 00:00:38]} Rad8 {[%clk 00:40:53]}
{[%emt 00:00:39]} 26. Rxd8 {[%clk 00:31:11]} {[%emt 00:01:45]} Rxd8 {[%clk
00:41:15]} {[%emt 00:00:07]} 27. g4 {[%clk 00:31:27]} {[%emt 00:00:14]} Bd3+
{[%clk 00:41:30]} {[%emt 00:00:16]} 28. Kg2 {[%clk 00:31:35]} {[%emt 00:00:21]}
Bc4 {[%clk 00:41:46]} {[%emt 00:00:14]} 29. a3 {[%clk 00:31:37]} {[%emt
00:00:29]} Bd5 {[%clk 00:42:03]} {[%emt 00:00:13]} 30. Re3 {[%clk 00:31:28]}
{[%emt 00:00:39]} Bxf3+ {[%clk 00:42:09]} {[%emt 00:00:23]} 31. Kxf3 {[%clk
00:31:48]} {[%emt 00:00:10]} Rd7 {[%clk 00:41:59]} {[%emt 00:00:40]} 32. h4
{[%clk 00:31:16]} {[%emt 00:01:03]} f6 {[%clk 00:42:15]} {[%emt 00:00:14]} 33.
Kg3 {[%clk 00:31:25]} {[%emt 00:00:20]} Kf7 {[%clk 00:42:27]} {[%emt 00:00:18]}
34. f4 {[%clk 00:31:38]} {[%emt 00:00:18]} Rd5 {[%clk 00:41:45]} {[%emt
00:01:13]} 35. c4 {[%clk 00:31:17]} {[%emt 00:00:51]} Rc5 {[%clk 00:41:41]}
{[%emt 00:00:33]} 36. Rb3 {[%clk 00:31:42]} {[%emt 00:00:05]} b6 {[%clk
00:41:14]} {[%emt 00:00:56]} 37. Rd3 {[%clk 00:31:44]} {[%emt 00:00:28]} Ke7
{[%clk 00:40:31]} {[%emt 00:01:14]} 38. Re3+ {[%clk 00:31:44]} {[%emt
00:00:30]} Kf8 {[%clk 00:39:43]} {[%emt 00:01:03]} 39. Re4 {[%clk 00:31:53]}
{[%emt 00:00:36]} b5 {[%clk 00:39:36]} {[%emt 00:00:37]} 40. cxb5 {[%clk
00:31:54]} {[%emt 00:00:28]} cxb5 {[%clk 00:39:39]} {[%emt 00:00:27]} 41. Re3
{[%clk 00:32:07]} {[%emt 00:00:17]} a5 {[%clk 00:39:57]} {[%emt 00:00:12]} 42.
h5 {[%clk 00:32:18]} {[%emt 00:00:19]} b4 {[%clk 00:40:09]} {[%emt 00:00:19]}
43. axb4 {[%clk 00:32:23]} {[%emt 00:00:25]} axb4 {[%clk 00:40:33]} {[%emt
00:00:05]} 44. Re4 {[%clk 00:31:39]} {[%emt 00:01:15]} Rc3+ {[%clk 00:40:36]}
{[%emt 00:00:27]} 45. Kf2 {[%clk 00:31:43]} {[%emt 00:00:26]} b3 {[%clk
00:40:37]} {[%emt 00:00:29]} 46. Rb4 {[%clk 00:31:56]} {[%emt 00:00:17]} Rc2+
{[%clk 00:40:53]} {[%emt 00:00:14]} 47. Ke1 {[%clk 00:32:16]} {[%emt 00:00:11]}
b2 {[%clk 00:41:05]} {[%emt 00:00:18]} 48. Rb8+ {[%clk 00:32:30]} {[%emt
00:00:15]} Ke7 {[%clk 00:41:13]} {[%emt 00:00:20]} 49. Rb7+ {[%emt 00:00:37]}
Kd8 {[%clk 00:40:53]} {[%emt 00:00:17]} 50. Kd1 {[%clk 00:32:43]} {[%emt
00:00:45]} Rc1+ {[%clk 00:41:08]} {[%emt 00:00:16]} 51. Kd2 {[%clk 00:33:08]}
{[%emt 00:00:05]} b1=Q {[%clk 00:41:26]} {[%emt 00:00:11]} 52. Rxb1 {[%clk
00:33:25]} {[%emt 00:00:13]} Rxb1 {[%clk 00:41:51]} {[%emt 00:00:12]} 0-1

[Event "ONJK DE"]
[Site "Enschede, Netherlands"]
[Date "2022.08.09"]
[Round "3.4"]
[White "Rooijakkers, Liam"]
[Black "Decraene, Lotus"]
[Result "0-1"]
[TimeControl "40min + 30sec/move"]
[WhiteElo "1266"]
[BlackElo "1332"]

1. e4 {[%clk 00:40:57]} {[%emt 00:00:02]} c5 {[%clk 00:39:33]} {[%emt
00:01:27]} 2. Nf3 {[%clk 00:41:21]} {[%emt 00:00:06]} d6 {[%clk 00:39:22]}
{[%emt 00:00:42]} 3. d4 {[%clk 00:41:29]} {[%emt 00:00:22]} cxd4 {[%clk
00:39:46]} {[%emt 00:00:06]} 4. Nxd4 {[%clk 00:41:49]} {[%emt 00:00:09]} Nf6
{[%clk 00:40:02]} {[%emt 00:00:14]} 5. Nc3 {[%clk 00:42:02]} {[%emt 00:00:18]}
a6 {[%clk 00:40:04]} {[%emt 00:00:29]} 6. f3 {[%clk 00:41:57]} {[%emt
00:00:34]} e5 {[%clk 00:40:13]} {[%emt 00:00:23]} 7. Nb3 {[%clk 00:42:17]}
{[%emt 00:00:09]} Be6 {[%clk 00:40:20]} {[%emt 00:00:23]} 8. Be3 {[%clk
00:41:54]} {[%emt 00:00:52]} Be7 {[%clk 00:40:22]} {[%emt 00:00:28]} 9. Qd2
{[%clk 00:41:56]} {[%emt 00:00:27]} h5 {[%clk 00:40:35]} {[%emt 00:00:19]} 10.
Be2 {[%clk 00:41:04]} {[%emt 00:01:22]} Nbd7 {[%clk 00:40:34]} {[%emt
00:00:30]} 11. O-O-O {[%clk 00:40:42]} {[%emt 00:00:52]} Rc8 {[%clk 00:40:29]}
{[%emt 00:00:35]} 12. h3 {[%clk 00:39:30]} {[%emt 00:01:43]} h4 {[%clk
00:40:25]} {[%emt 00:00:34]} 13. Bg5 {[%clk 00:38:48]} {[%emt 00:01:11]} b5
{[%clk 00:40:23]} {[%emt 00:00:33]} 14. Bxf6 {[%clk 00:38:47]} {[%emt
00:00:29]} Nxf6 {[%clk 00:40:28]} {[%emt 00:00:26]} 15. Nd5 {[%clk 00:38:00]}
{[%emt 00:01:16]} Nxd5 {[%clk 00:40:34]} {[%emt 00:00:25]} 16. Kb1 {[%clk
00:36:39]} {[%emt 00:01:51]} Nb6 {[%clk 00:39:19]} {[%emt 00:01:42]} 17. Na5
{[%clk 00:35:56]} {[%emt 00:01:17]} Qc7 {[%clk 00:38:48]} {[%emt 00:01:00]} 18.
Rdg1 {[%clk 00:34:56]} {[%emt 00:01:29]} Nc4 {[%clk 00:37:22]} {[%emt
00:01:57]} 19. Nxc4 {[%clk 00:34:59]} {[%emt 00:00:27]} bxc4 {[%clk 00:36:41]}
{[%emt 00:01:12]} 20. g3 {[%clk 00:34:51]} {[%emt 00:00:37]} hxg3 {[%clk
00:36:40]} {[%emt 00:00:32]} 21. Rxg3 {[%clk 00:35:11]} {[%emt 00:00:08]} g6
{[%clk 00:37:02]} {[%emt 00:00:10]} 0-1